[Event "Late-Titled-Tuesday-Blitz-September-26-2023"]
[Site "Chess.com"]
[Date "2023.09.26"]
[Round "6"]
[White "alexrustemov"]
[Black "Alphafischer2019"]
[Result "1-0"]
[WhiteElo "2876"]
[BlackElo "2583"]
[TimeControl "180+1"]
[EndTime "15:03:24 PDT"]
[Termination "alexrustemov won on time"]

1. d4 {[%clk 0:02:56.4]} 1... Nf6 {[%clk 0:03:00]} 2. c4 {[%clk 0:02:56.1]} 2...
c5 {[%clk 0:03:00.3]} 3. d5 {[%clk 0:02:55.4]} 3... e5 {[%clk 0:03:00.8]} 4. Nc3
{[%clk 0:02:55.1]} 4... d6 {[%clk 0:03:00.6]} 5. e4 {[%clk 0:02:55.5]} 5... g6
{[%clk 0:03:01.3]} 6. Bd3 {[%clk 0:02:54.2]} 6... Bg7 {[%clk 0:03:01.9]} 7. Nge2
{[%clk 0:02:46.2]} 7... h6 {[%clk 0:03:00.9]} 8. f3 {[%clk 0:02:45.5]} 8... O-O
{[%clk 0:02:59.2]} 9. Be3 {[%clk 0:02:45.9]} 9... a6 {[%clk 0:02:54.9]} 10. a4
{[%clk 0:02:44.8]} 10... Nbd7 {[%clk 0:02:49]} 11. Qd2 {[%clk 0:02:45.2]} 11...
Kh7 {[%clk 0:02:48.6]} 12. g4 {[%clk 0:02:45.1]} 12... Ne8 {[%clk 0:02:40.8]}
13. h4 {[%clk 0:02:44.2]} 13... Rb8 {[%clk 0:02:25.3]} 14. Ng3 {[%clk
0:02:43.8]} 14... b6 {[%clk 0:02:15.4]} 15. h5 {[%clk 0:02:43.1]} 15... g5
{[%clk 0:02:15.5]} 16. Nf5 {[%clk 0:02:42.5]} 16... Ndf6 {[%clk 0:02:06.7]} 17.
a5 {[%clk 0:02:37.3]} 17... bxa5 {[%clk 0:02:04.9]} 18. Ne2 {[%clk 0:02:30.4]}
18... Ng8 {[%clk 0:02:04.2]} 19. Neg3 {[%clk 0:02:24.6]} 19... Rb4 {[%clk
0:01:56.7]} 20. Qc2 {[%clk 0:02:20.1]} 20... Qb6 {[%clk 0:01:54.7]} 21. Ra2
{[%clk 0:02:17.4]} 21... Qb8 {[%clk 0:01:46.3]} 22. Bd2 {[%clk 0:02:17.4]} 22...
Rb7 {[%clk 0:01:38.1]} 23. Bxa5 {[%clk 0:02:16.4]} 23... Ne7 {[%clk 0:01:36.9]}
24. Ne3 {[%clk 0:02:15.6]} 24... Nf6 {[%clk 0:01:30.6]} 25. O-O {[%clk
0:02:09.4]} 25... Bd7 {[%clk 0:01:10.4]} 26. Rb1 {[%clk 0:02:08.8]} 26... Qa7
{[%clk 0:01:09.6]} 27. b3 {[%clk 0:02:08.3]} 27... Rbb8 {[%clk 0:01:05.6]} 28.
Kg2 {[%clk 0:02:08.6]} 28... Rfc8 {[%clk 0:01:04.3]} 29. Rba1 {[%clk 0:02:04.6]}
29... Qb7 {[%clk 0:01:04.5]} 30. Ra3 {[%clk 0:02:04.1]} 30... Ra8 {[%clk
0:01:00.5]} 31. Bc3 {[%clk 0:02:03.7]} 31... Rcb8 {[%clk 0:00:59.8]} 32. Qd2
{[%clk 0:01:59.5]} 32... Bc8 {[%clk 0:00:56]} 33. Bc2 {[%clk 0:01:58.7]} 33...
Qd7 {[%clk 0:00:55.9]} 34. Rb1 {[%clk 0:01:54.2]} 34... Ra7 {[%clk 0:00:52.5]}
35. b4 {[%clk 0:01:52.4]} 35... cxb4 {[%clk 0:00:52.6]} 36. Rxb4 {[%clk
0:01:53]} 36... Rxb4 {[%clk 0:00:51.2]} 37. Bxb4 {[%clk 0:01:53.9]} 37... Rc7
{[%clk 0:00:49.7]} 38. Bd3 {[%clk 0:01:50]} 38... Bb7 {[%clk 0:00:38.7]} 39.
Ngf5 {[%clk 0:01:48.3]} 39... Nxf5 {[%clk 0:00:38.2]} 40. Nxf5 {[%clk
0:01:48.9]} 40... Bf8 {[%clk 0:00:38.7]} 41. Ra5 {[%clk 0:01:42.6]} 41... Rc8
{[%clk 0:00:38.7]} 42. Qb2 {[%clk 0:01:40.2]} 42... Qc7 {[%clk 0:00:36.9]} 43.
Qa3 {[%clk 0:01:39.2]} 43... Ne8 {[%clk 0:00:36]} 44. Be1 {[%clk 0:01:27.5]}
44... Ng7 {[%clk 0:00:30.1]} 45. Ng3 {[%clk 0:01:24.5]} 45... Be7 {[%clk
0:00:28.9]} 46. Bf2 {[%clk 0:01:24.2]} 1-0

[Event "Late-Titled-Tuesday-Blitz-September-26-2023"]
[Site "Chess.com"]
[Date "2023.09.26"]
[Round "6"]
[White "traack"]
[Black "CURRUTACO59"]
[Result "1-0"]
[WhiteElo "2399"]
[BlackElo "2252"]
[TimeControl "180+1"]
[EndTime "15:03:27 PDT"]
[Termination "traack won on time"]

1. e4 {[%clk 0:03:00.9]} 1... e5 {[%clk 0:02:52]} 2. Nf3 {[%clk 0:03:00.4]} 2...
Nc6 {[%clk 0:02:49.2]} 3. Nc3 {[%clk 0:02:59.9]} 3... Bb4 {[%clk 0:02:47.5]} 4.
Nd5 {[%clk 0:02:55.4]} 4... Nf6 {[%clk 0:02:47.6]} 5. Nxb4 {[%clk 0:02:54.6]}
5... Nxb4 {[%clk 0:02:48.5]} 6. d3 {[%clk 0:02:47.1]} 6... Nc6 {[%clk 0:02:47]}
7. g3 {[%clk 0:02:46.8]} 7... d5 {[%clk 0:02:46.1]} 8. exd5 {[%clk 0:02:46.6]}
8... Nxd5 {[%clk 0:02:46]} 9. Bg2 {[%clk 0:02:47]} 9... f6 {[%clk 0:02:44.3]}
10. O-O {[%clk 0:02:47.5]} 10... Be6 {[%clk 0:02:44.2]} 11. Re1 {[%clk
0:02:46.5]} 11... O-O {[%clk 0:02:43.9]} 12. d4 {[%clk 0:02:46.5]} 12... Bg4
{[%clk 0:02:39.4]} 13. h3 {[%clk 0:02:14.8]} 13... Bh5 {[%clk 0:02:35.1]} 14. g4
{[%clk 0:02:13.8]} 14... Bg6 {[%clk 0:02:12.9]} 15. dxe5 {[%clk 0:02:12.2]}
15... fxe5 {[%clk 0:02:11.6]} 16. Nxe5 {[%clk 0:02:10.7]} 16... Nxe5 {[%clk
0:02:11.5]} 17. Qxd5+ {[%clk 0:02:08.1]} 17... Nf7 {[%clk 0:01:59.9]} 18. Bf4
{[%clk 0:01:51.2]} 18... c6 {[%clk 0:01:42.4]} 19. Qb3 {[%clk 0:01:39.5]} 19...
Qb6 {[%clk 0:01:24.1]} 20. Re7 {[%clk 0:01:29.3]} 20... Kh8 {[%clk 0:01:06.1]}
21. Qxb6 {[%clk 0:01:23]} 21... axb6 {[%clk 0:01:07]} 22. Rxb7 {[%clk
0:01:22.6]} 22... Bxc2 {[%clk 0:00:49.5]} 23. Rxb6 {[%clk 0:01:14.7]} 23... Nd8
{[%clk 0:00:44]} 24. Be3 {[%clk 0:01:10.8]} 24... Ra4 {[%clk 0:00:31.4]} 25.
Bxc6 {[%clk 0:01:09.8]} 25... Nxc6 {[%clk 0:00:30.1]} 26. Rxc6 {[%clk 0:01:10]}
26... Bb3 {[%clk 0:00:26.1]} 27. a3 {[%clk 0:01:06.2]} 27... h6 {[%clk
0:00:20.1]} 28. Rac1 {[%clk 0:01:03.2]} 28... Bd5 {[%clk 0:00:19.1]} 29. Rc7
{[%clk 0:01:03.1]} 29... Re4 {[%clk 0:00:16.9]} 30. Rd7 {[%clk 0:01:02.1]} 30...
Ba8 {[%clk 0:00:14.5]} 31. Rcc7 {[%clk 0:01:01.1]} 31... Rg8 {[%clk 0:00:13]}
32. Bxh6 {[%clk 0:00:59.8]} 32... Re1+ {[%clk 0:00:10.6]} 33. Kh2 {[%clk
0:00:58.6]} 33... Rh1+ {[%clk 0:00:09.8]} 34. Kg3 {[%clk 0:00:59]} 34... Rg1+
{[%clk 0:00:08.9]} 35. Kh4 {[%clk 0:00:56.7]} 1-0

[Event "Late-Titled-Tuesday-Blitz-September-26-2023"]
[Site "Chess.com"]
[Date "2023.09.26"]
[Round "6"]
[White "iturrizaga"]
[Black "IlanSchnaider"]
[Result "1-0"]
[WhiteElo "3002"]
[BlackElo "2809"]
[TimeControl "180+1"]
[EndTime "15:03:30 PDT"]
[Termination "iturrizaga won by resignation"]

1. c4 {[%clk 0:03:00.9]} 1... Nf6 {[%clk 0:02:58.8]} 2. g3 {[%clk 0:03:01.2]}
2... g6 {[%clk 0:02:57.9]} 3. Bg2 {[%clk 0:03:01.8]} 3... Bg7 {[%clk 0:02:57.5]}
4. Nc3 {[%clk 0:03:02.2]} 4... O-O {[%clk 0:02:57.7]} 5. d4 {[%clk 0:03:02.9]}
5... Nc6 {[%clk 0:02:57.9]} 6. e4 {[%clk 0:03:01.8]} 6... e5 {[%clk 0:02:57.5]}
7. dxe5 {[%clk 0:02:55.2]} 7... Nxe5 {[%clk 0:02:57.7]} 8. b3 {[%clk 0:02:50.2]}
8... c6 {[%clk 0:02:52.2]} 9. Nge2 {[%clk 0:02:49.7]} 9... d5 {[%clk 0:02:47.4]}
10. exd5 {[%clk 0:02:45.3]} 10... cxd5 {[%clk 0:02:47.1]} 11. cxd5 {[%clk
0:02:42.9]} 11... Bg4 {[%clk 0:02:46]} 12. O-O {[%clk 0:02:42.8]} 12... Bf3
{[%clk 0:02:39.5]} 13. Bxf3 {[%clk 0:02:40.5]} 13... Nxf3+ {[%clk 0:02:39.1]}
14. Kg2 {[%clk 0:02:41.1]} 14... Ne5 {[%clk 0:02:15.2]} 15. Bf4 {[%clk
0:02:39.9]} 15... Re8 {[%clk 0:02:10.3]} 16. Rc1 {[%clk 0:02:39.1]} 16... Rc8
{[%clk 0:01:57.4]} 17. Qd4 {[%clk 0:02:33.6]} 17... Nfd7 {[%clk 0:01:30.7]} 18.
Rfd1 {[%clk 0:02:25]} 18... Nc5 {[%clk 0:01:10.4]} 19. Bxe5 {[%clk 0:02:12.4]}
19... Rxe5 {[%clk 0:01:01.3]} 20. Nf4 {[%clk 0:01:55.7]} 20... Rf5 {[%clk
0:00:43.8]} 21. Qb4 {[%clk 0:01:48.5]} 21... Bh6 {[%clk 0:00:34.9]} 22. Nce2
{[%clk 0:01:47.9]} 22... a5 {[%clk 0:00:20]} 23. Qd4 {[%clk 0:01:29.1]} 23... b6
{[%clk 0:00:17.7]} 24. d6 {[%clk 0:01:28.9]} 24... Ne6 {[%clk 0:00:14.9]} 25.
Nxe6 {[%clk 0:01:23.4]} 25... fxe6 {[%clk 0:00:11.7]} 26. Rxc8 {[%clk
0:01:23.3]} 26... Qxc8 {[%clk 0:00:12.6]} 27. d7 {[%clk 0:01:17.4]} 27... Qd8
{[%clk 0:00:10.4]} 28. Qd6 {[%clk 0:01:13]} 28... Kf7 {[%clk 0:00:09.5]} 29. Nd4
{[%clk 0:01:10.4]} 29... Rf6 {[%clk 0:00:09.7]} 30. Nc6 {[%clk 0:01:10.3]} 30...
Rxf2+ {[%clk 0:00:05.8]} 31. Kxf2 {[%clk 0:01:03.4]} 31... Qf6+ {[%clk
0:00:06.2]} 32. Kg2 {[%clk 0:01:04]} 32... Qb2+ {[%clk 0:00:05.3]} 33. Kh1
{[%clk 0:01:03.6]} 33... Qe2 {[%clk 0:00:04.6]} 34. Ne5+ {[%clk 0:00:59]} 34...
Kf6 {[%clk 0:00:01.9]} 35. d8=Q+ {[%clk 0:00:58.8]} 35... Kf5 {[%clk 0:00:01.5]}
1-0

[Event "Late-Titled-Tuesday-Blitz-September-26-2023"]
[Site "Chess.com"]
[Date "2023.09.26"]
[Round "6"]
[White "GMBenjaminBok"]
[Black "ShiroglanTalibov"]
[Result "1/2-1/2"]
[WhiteElo "2967"]
[BlackElo "2860"]
[TimeControl "180+1"]
[EndTime "15:03:31 PDT"]
[Termination "Game drawn by repetition"]

1. d4 {[%clk 0:03:00.9]} 1... Nf6 {[%clk 0:02:58.7]} 2. c4 {[%clk 0:03:00.9]}
2... e6 {[%clk 0:02:58.7]} 3. Nc3 {[%clk 0:03:01.1]} 3... d5 {[%clk 0:02:56.6]}
4. cxd5 {[%clk 0:03:00]} 4... exd5 {[%clk 0:02:56.5]} 5. Bg5 {[%clk 0:03:00.6]}
5... Bb4 {[%clk 0:02:53.7]} 6. e3 {[%clk 0:02:58.6]} 6... h6 {[%clk 0:02:52.5]}
7. Bh4 {[%clk 0:02:52.3]} 7... O-O {[%clk 0:02:52.3]} 8. Bd3 {[%clk 0:02:51.4]}
8... c5 {[%clk 0:02:50.2]} 9. dxc5 {[%clk 0:02:41.7]} 9... Na6 {[%clk
0:02:43.4]} 10. Ne2 {[%clk 0:02:36.7]} 10... Nxc5 {[%clk 0:02:42.1]} 11. O-O
{[%clk 0:02:35]} 11... Be6 {[%clk 0:02:39]} 12. Rc1 {[%clk 0:02:27.7]} 12... Rc8
{[%clk 0:02:37.2]} 13. Nf4 {[%clk 0:02:14.2]} 13... Nxd3 {[%clk 0:02:29.7]} 14.
Qxd3 {[%clk 0:02:15.1]} 14... Bxc3 {[%clk 0:02:23.6]} 15. Rxc3 {[%clk
0:02:12.7]} 15... Rxc3 {[%clk 0:02:22.9]} 16. Qxc3 {[%clk 0:02:06.6]} 16... Ne4
{[%clk 0:02:22.6]} 17. Bxd8 {[%clk 0:02:03.5]} 17... Nxc3 {[%clk 0:02:22.7]} 18.
Be7 {[%clk 0:00:42.7]} 18... Re8 {[%clk 0:02:20.8]} 19. Bc5 {[%clk 0:00:42.9]}
19... Ne4 {[%clk 0:02:17.3]} 20. Bd4 {[%clk 0:00:38.8]} 20... Rc8 {[%clk
0:02:16.3]} 21. f3 {[%clk 0:00:37.2]} 21... Nd6 {[%clk 0:02:15.7]} 22. Bxa7
{[%clk 0:00:35.1]} 22... Rc2 {[%clk 0:02:05.4]} 23. Bd4 {[%clk 0:00:27.3]} 23...
Nf5 {[%clk 0:02:01.2]} 24. Rb1 {[%clk 0:00:22.2]} 24... Nxd4 {[%clk 0:02:00.1]}
25. exd4 {[%clk 0:00:23.1]} 25... Rd2 {[%clk 0:02:00.5]} 26. Re1 {[%clk
0:00:19.6]} 26... Rxb2 {[%clk 0:01:51.1]} 27. Nxe6 {[%clk 0:00:17]} 27... fxe6
{[%clk 0:01:52]} 28. Rxe6 {[%clk 0:00:17.2]} 28... Rd2 {[%clk 0:01:50.7]} 29.
Rb6 {[%clk 0:00:14.7]} 29... Rxd4 {[%clk 0:01:50.8]} 30. Rxb7 {[%clk 0:00:15]}
30... Rd1+ {[%clk 0:01:51.1]} 31. Kf2 {[%clk 0:00:15]} 31... Rd2+ {[%clk
0:01:52]} 32. Kg3 {[%clk 0:00:15.3]} 32... Rxa2 {[%clk 0:01:52.6]} 33. Rd7
{[%clk 0:00:15.5]} 33... Rd2 {[%clk 0:01:52.9]} 34. h4 {[%clk 0:00:15.3]} 34...
h5 {[%clk 0:01:50.1]} 35. Kh3 {[%clk 0:00:14.7]} 35... d4 {[%clk 0:01:45.3]} 36.
Rd5 {[%clk 0:00:11]} 36... g6 {[%clk 0:01:44.7]} 37. Rd7 {[%clk 0:00:11.2]}
37... d3 {[%clk 0:01:44.7]} 38. g4 {[%clk 0:00:09.3]} 38... Rd1 {[%clk
0:01:43.9]} 39. gxh5 {[%clk 0:00:06]} 39... gxh5 {[%clk 0:01:44]} 40. Kg3 {[%clk
0:00:06.1]} 40... Kf8 {[%clk 0:01:40.1]} 41. Kf4 {[%clk 0:00:06.5]} 41... d2
{[%clk 0:01:34.9]} 42. Ke3 {[%clk 0:00:04.7]} 42... Rh1 {[%clk 0:01:35]} 43.
Rxd2 {[%clk 0:00:02.4]} 43... Rxh4 {[%clk 0:01:35.6]} 44. Rd7 {[%clk 0:00:02.4]}
44... Ra4 {[%clk 0:01:31.7]} 45. f4 {[%clk 0:00:02.5]} 45... h4 {[%clk
0:01:31.3]} 46. Kf3 {[%clk 0:00:02.9]} 46... h3 {[%clk 0:01:30.3]} 47. Rh7
{[%clk 0:00:02.3]} 47... Ra3+ {[%clk 0:01:29.2]} 48. Kg4 {[%clk 0:00:02.8]}
48... Kg8 {[%clk 0:01:28.5]} 49. Rxh3 {[%clk 0:00:02.4]} 49... Rxh3 {[%clk
0:01:29.1]} 50. Kxh3 {[%clk 0:00:03.3]} 50... Kf7 {[%clk 0:01:29.4]} 51. Kg4
{[%clk 0:00:04]} 51... Kf6 {[%clk 0:01:30.3]} 52. f5 {[%clk 0:00:04.4]} 52...
Kf7 {[%clk 0:01:30.9]} 53. Kg5 {[%clk 0:00:04.7]} 53... Kg7 {[%clk 0:01:31.6]}
54. f6+ {[%clk 0:00:05.2]} 54... Kf7 {[%clk 0:01:32.2]} 55. Kf5 {[%clk
0:00:05.8]} 55... Kf8 {[%clk 0:01:32.8]} 56. Ke5 {[%clk 0:00:06.3]} 56... Kf7
{[%clk 0:01:33.1]} 57. Kf5 {[%clk 0:00:06.8]} 57... Kf8 {[%clk 0:01:33.6]} 58.
Ke6 {[%clk 0:00:07.4]} 58... Ke8 {[%clk 0:01:34]} 59. Ke5 {[%clk 0:00:07.2]}
59... Kf7 {[%clk 0:01:34.2]} 60. Kf5 {[%clk 0:00:07.6]} 1/2-1/2

[Event "Late-Titled-Tuesday-Blitz-September-26-2023"]
[Site "Chess.com"]
[Date "2023.09.26"]
[Round "6"]
[White "2k28Lakers"]
[Black "German_Bazeev"]
[Result "0-1"]
[WhiteElo "2560"]
[BlackElo "2753"]
[TimeControl "180+1"]
[EndTime "15:03:39 PDT"]
[Termination "German_Bazeev won by resignation"]

1. e4 {[%clk 0:03:00.9]} 1... g6 {[%clk 0:02:58.7]} 2. d4 {[%clk 0:03:00.9]}
2... Bg7 {[%clk 0:02:59.3]} 3. Nc3 {[%clk 0:03:01.8]} 3... d6 {[%clk 0:02:59.9]}
4. Be3 {[%clk 0:03:02.2]} 4... Nd7 {[%clk 0:02:59.2]} 5. h4 {[%clk 0:03:01.8]}
5... h5 {[%clk 0:02:57.6]} 6. Nf3 {[%clk 0:03:01.9]} 6... Ngf6 {[%clk
0:02:55.1]} 7. Ng5 {[%clk 0:03:01.7]} 7... Ng4 {[%clk 0:02:55.7]} 8. Bc4 {[%clk
0:02:49.3]} 8... O-O {[%clk 0:02:37.2]} 9. Qf3 {[%clk 0:02:24.6]} 9... e6 {[%clk
0:02:26.9]} 10. O-O-O {[%clk 0:02:14.7]} 10... c6 {[%clk 0:02:17.6]} 11. Bf4
{[%clk 0:02:11.7]} 11... d5 {[%clk 0:02:13.3]} 12. Be2 {[%clk 0:02:04.9]} 12...
b5 {[%clk 0:02:03.1]} 13. Bd6 {[%clk 0:02:03.3]} 13... b4 {[%clk 0:01:56.4]} 14.
Bxb4 {[%clk 0:02:01]} 14... c5 {[%clk 0:01:57]} 15. dxc5 {[%clk 0:01:52]} 15...
d4 {[%clk 0:01:57]} 16. Nb5 {[%clk 0:01:39.1]} 16... Nde5 {[%clk 0:01:30]} 17.
Qg3 {[%clk 0:01:32.2]} 17... Nc6 {[%clk 0:01:29]} 18. Ba3 {[%clk 0:01:23.5]}
18... Qa5 {[%clk 0:01:28.7]} 19. Nd6 {[%clk 0:01:18.5]} 19... Rb8 {[%clk
0:01:23.7]} 20. Nc4 {[%clk 0:01:08.9]} 20... Qa4 {[%clk 0:01:20.4]} 21. b3
{[%clk 0:00:40.7]} 21... Qa6 {[%clk 0:01:19.3]} 22. Bxg4 {[%clk 0:00:21.8]}
22... Ne5 {[%clk 0:01:14.6]} 23. Nxe5 {[%clk 0:00:12.8]} 23... Qxa3+ {[%clk
0:01:14.8]} 24. Kb1 {[%clk 0:00:13.3]} 24... hxg4 {[%clk 0:01:09.6]} 25. Nc4
{[%clk 0:00:12.3]} 25... Qb4 {[%clk 0:01:08.9]} 26. h5 {[%clk 0:00:11.9]} 26...
Qxc4 {[%clk 0:01:02.6]} 27. Qxb8 {[%clk 0:00:11.1]} 27... Qc3 {[%clk 0:01:03.2]}
28. h6 {[%clk 0:00:10.6]} 28... Bf6 {[%clk 0:01:00.6]} 29. h7+ {[%clk
0:00:09.4]} 29... Kh8 {[%clk 0:00:59.8]} 30. Nxf7+ {[%clk 0:00:08.3]} 30... Kg7
{[%clk 0:01:00.4]} 31. h8=Q+ {[%clk 0:00:08]} 31... Rxh8 {[%clk 0:00:59.7]} 32.
Rxh8 {[%clk 0:00:05.6]} 32... d3 {[%clk 0:01:00.2]} 33. Rg8+ {[%clk 0:00:03.4]}
33... Kxg8 {[%clk 0:00:59.4]} 34. Qxc8+ {[%clk 0:00:03.9]} 34... Kxf7 {[%clk
0:01:00.1]} 35. Qd7+ {[%clk 0:00:03.8]} 35... Kf8 {[%clk 0:01:00]} 36. Qc8+
{[%clk 0:00:03.7]} 36... Kg7 {[%clk 0:00:57.8]} 37. Qd7+ {[%clk 0:00:04.6]}
37... Kh6 {[%clk 0:00:56.7]} 38. e5 {[%clk 0:00:04.9]} 38... Qxc2+ {[%clk
0:00:48.8]} 39. Ka1 {[%clk 0:00:03.6]} 39... Bxe5+ {[%clk 0:00:49.4]} 0-1

[Event "Late-Titled-Tuesday-Blitz-September-26-2023"]
[Site "Chess.com"]
[Date "2023.09.26"]
[Round "6"]
[White "JoseRemolar"]
[Black "MKlose11"]
[Result "1-0"]
[WhiteElo "2405"]
[BlackElo "2581"]
[TimeControl "180+1"]
[EndTime "15:03:44 PDT"]
[Termination "JoseRemolar won by resignation"]

1. e4 {[%clk 0:03:00.9]} 1... e6 {[%clk 0:02:50]} 2. d4 {[%clk 0:02:59.9]} 2...
d5 {[%clk 0:02:50.9]} 3. e5 {[%clk 0:03:00]} 3... c5 {[%clk 0:02:50.4]} 4. c3
{[%clk 0:03:00]} 4... Nc6 {[%clk 0:02:50.2]} 5. Nf3 {[%clk 0:02:59.4]} 5... Bd7
{[%clk 0:02:50.5]} 6. Be2 {[%clk 0:02:55.4]} 6... f6 {[%clk 0:02:49.3]} 7. O-O
{[%clk 0:02:53]} 7... fxe5 {[%clk 0:02:49.1]} 8. Nxe5 {[%clk 0:02:50.5]} 8...
Nxe5 {[%clk 0:02:49.1]} 9. dxe5 {[%clk 0:02:51]} 9... g6 {[%clk 0:02:45.9]} 10.
Nd2 {[%clk 0:02:41.2]} 10... Bg7 {[%clk 0:02:40.3]} 11. f4 {[%clk 0:02:34]}
11... Ne7 {[%clk 0:02:40.4]} 12. Nf3 {[%clk 0:02:32]} 12... O-O {[%clk
0:02:30.9]} 13. Be3 {[%clk 0:02:31.3]} 13... Qc7 {[%clk 0:02:29.3]} 14. Kh1
{[%clk 0:02:16.5]} 14... Rab8 {[%clk 0:02:29.2]} 15. a3 {[%clk 0:02:08.7]} 15...
b5 {[%clk 0:02:28.1]} 16. b4 {[%clk 0:02:08.4]} 16... cxb4 {[%clk 0:02:16.5]}
17. axb4 {[%clk 0:02:04.7]} 17... Rb7 {[%clk 0:02:12.5]} 18. Bc5 {[%clk
0:02:02.2]} 18... Nf5 {[%clk 0:02:09.6]} 19. g4 {[%clk 0:01:58.4]} 19... Nh6
{[%clk 0:02:04]} 20. Nd4 {[%clk 0:01:48.2]} 20... Rc8 {[%clk 0:01:53.4]} 21. Ra6
{[%clk 0:01:42.6]} 21... Bf8 {[%clk 0:01:46.3]} 22. Nxe6 {[%clk 0:01:16.9]}
22... Bxe6 {[%clk 0:01:44.4]} 23. Rxe6 {[%clk 0:01:17.8]} 23... Bxc5 {[%clk
0:01:42]} 24. Qxd5 {[%clk 0:01:17.7]} 24... Qf7 {[%clk 0:01:07.6]} 25. bxc5
{[%clk 0:00:29.3]} 25... Rd7 {[%clk 0:01:06.6]} 26. Qa2 {[%clk 0:00:29.3]} 26...
Rxc5 {[%clk 0:00:53.7]} 27. Rxg6+ {[%clk 0:00:29.5]} 27... hxg6 {[%clk
0:00:51.8]} 28. e6 {[%clk 0:00:30.4]} 28... Qe7 {[%clk 0:00:43.7]} 29. exd7+
{[%clk 0:00:30.2]} 29... Kg7 {[%clk 0:00:44.6]} 30. Qxa7 {[%clk 0:00:26.6]}
30... Qxe2 {[%clk 0:00:36.5]} 31. d8=Q+ {[%clk 0:00:24.7]} 31... Nf7 {[%clk
0:00:37.4]} 32. Qd4+ {[%clk 0:00:19.5]} 32... Re5 {[%clk 0:00:31.5]} 33. Qa1
{[%clk 0:00:14.2]} 33... Qxg4 {[%clk 0:00:25.4]} 34. fxe5 {[%clk 0:00:13.9]} 1-0

[Event "Late-Titled-Tuesday-Blitz-September-26-2023"]
[Site "Chess.com"]
[Date "2023.09.26"]
[Round "6"]
[White "Smiechu"]
[Black "GothamChess"]
[Result "0-1"]
[WhiteElo "2535"]
[BlackElo "2715"]
[TimeControl "180+1"]
[EndTime "15:03:45 PDT"]
[Termination "GothamChess won by resignation"]

1. e4 {[%clk 0:03:00.9]} 1... c6 {[%clk 0:02:59.8]} 2. d4 {[%clk 0:03:00.2]}
2... d5 {[%clk 0:03:00.4]} 3. f3 {[%clk 0:03:00.7]} 3... e5 {[%clk 0:02:54.4]}
4. dxe5 {[%clk 0:02:54.5]} 4... Bc5 {[%clk 0:02:54.4]} 5. Qe2 {[%clk 0:02:45.5]}
5... Ne7 {[%clk 0:02:42.2]} 6. Be3 {[%clk 0:02:39.2]} 6... Qb6 {[%clk
0:02:31.2]} 7. Bxc5 {[%clk 0:02:30.7]} 7... Qxb2 {[%clk 0:02:30.6]} 8. Qd1
{[%clk 0:02:08]} 8... Qxa1 {[%clk 0:02:26.9]} 9. Bxe7 {[%clk 0:02:07.8]} 9...
Kxe7 {[%clk 0:02:26.7]} 10. exd5 {[%clk 0:01:54]} 10... Qxe5+ {[%clk 0:02:25.1]}
11. Be2 {[%clk 0:01:52]} 11... Qxd5 {[%clk 0:02:21.6]} 12. Bd3 {[%clk
0:01:51.3]} 12... Bf5 {[%clk 0:02:02.1]} 13. Ne2 {[%clk 0:01:44.8]} 13... Bxd3
{[%clk 0:01:58.8]} 14. cxd3 {[%clk 0:01:44.8]} 14... Re8 {[%clk 0:01:54.3]} 15.
O-O {[%clk 0:01:43]} 15... Kf8 {[%clk 0:01:53.5]} 16. Nbc3 {[%clk 0:01:41.9]}
16... Qd6 {[%clk 0:01:47.2]} 17. Ne4 {[%clk 0:01:40.3]} 17... Qb4 {[%clk
0:01:35.2]} 18. Qc2 {[%clk 0:01:33.7]} 18... Na6 {[%clk 0:01:26.6]} 19. Rb1
{[%clk 0:01:32]} 19... Qe7 {[%clk 0:01:26.6]} 20. Nd4 {[%clk 0:01:20.2]} 20...
Rab8 {[%clk 0:01:22.9]} 21. Nf5 {[%clk 0:01:18.9]} 21... Qe5 {[%clk 0:01:20.2]}
22. Nfd6 {[%clk 0:01:13.2]} 22... Re7 {[%clk 0:01:18.1]} 23. Qc4 {[%clk
0:00:53.1]} 23... Nc7 {[%clk 0:01:00.6]} 24. d4 {[%clk 0:00:25.9]} 24... Qd5
{[%clk 0:00:54.6]} 25. Qxd5 {[%clk 0:00:10.2]} 25... Nxd5 {[%clk 0:00:54.6]} 26.
Nc5 {[%clk 0:00:09]} 26... b6 {[%clk 0:00:51.7]} 27. a4 {[%clk 0:00:08.3]} 27...
Rd8 {[%clk 0:00:48.1]} 28. Ncb7 {[%clk 0:00:05.7]} 28... Rdd7 {[%clk 0:00:47.8]}
29. Rc1 {[%clk 0:00:02.3]} 29... Rxb7 {[%clk 0:00:44.8]} 30. Nxb7 {[%clk
0:00:02.5]} 30... Rxb7 {[%clk 0:00:45.7]} 31. Rxc6 {[%clk 0:00:03]} 31... Rc7
{[%clk 0:00:39.5]} 32. Rd6 {[%clk 0:00:02.9]} 32... Nc3 {[%clk 0:00:40.1]} 33.
a5 {[%clk 0:00:01.7]} 33... bxa5 {[%clk 0:00:41]} 34. Ra6 {[%clk 0:00:01.7]}
34... a4 {[%clk 0:00:40.3]} 35. d5 {[%clk 0:00:02.3]} 35... Nxd5 {[%clk
0:00:39.7]} 36. Rxa4 {[%clk 0:00:02.3]} 36... Nb6 {[%clk 0:00:38.7]} 37. Ra6
{[%clk 0:00:01.8]} 37... Ke7 {[%clk 0:00:37.5]} 0-1